fUSD/lending_fUSD_20240404
["ID","MTS","AMOUNT","RATE_DAILY","PERIOD"]
[321446745,1712193080216,-421.08106086,0.00055051,120]
[321446746,1712193080226,-191.47483542,0.00055051,120]
[321446747,1712193080236,-159.96854787,0.00055052,120]
[321446748,1712193080246,-5800.0,0.00055058,7]
[321446749,1712193080256,-150.0,0.00055059,120]
[321446750,1712193080267,-150.0,0.0005506,14]
[321446751,1712193080276,-421.08106086,0.00055062,120]
[321446752,1712193080286,-191.47483542,0.00055062,120]
[321446753,1712193080296,-153.25551138,0.00055063,120]
[321446754,1712193080305,-150.0,0.00055066,14]
[321446755,1712193080315,-500.0,0.00055066,33]
[321446756,1712193080325,-500.0,0.00055066,33]
[321446757,1712193080335,-500.0,0.00055066,33]
[321446758,1712193080345,-500.0,0.00055066,33]
[321446759,1712193080356,-500.0,0.00055066,33]
[321446760,1712193080366,-500.0,0.00055066,33]
[321446761,1712193080375,-500.0,0.00055066,45]
[321446762,1712193080385,-500.0,0.00055066,33]
[321446763,1712193080395,-500.0,0.00055066,33]
[321446764,1712193080404,-500.0,0.00055066,33]
[321446765,1712193080414,-500.0,0.00055066,33]
[321446766,1712193080424,-500.0,0.00055066,33]
[321446767,1712193080433,-500.0,0.00055066,33]
[321446768,1712193080443,-500.0,0.00055066,45]
[321446769,1712193080452,-500.0,0.00055068,120]
[321446770,1712193080462,-500.0,0.00055068,120]
[321446771,1712193080471,-500.0,0.00055068,120]
[321446772,1712193080481,-500.0,0.00055068,120]
[321446773,1712193080491,-743.5,0.00055068,120]
[321446774,1712193080501,-616.76,0.00055068,120]
[321446775,1712193080511,-500.0,0.00055068,120]
[321446776,1712193080521,-500.0,0.00055068,120]
[321446777,1712193080530,-508.83030272,0.00055068,120]
[321446778,1712193080540,-447.91146625,0.00055068,120]
[321446779,1712193080550,-500.0,0.00055068,120]
[321446780,1712193080559,-500.0,0.00055068,120]
[321446781,1712193080569,-500.0,0.00055068,120]
[321446782,1712193080578,-472.23941958,0.00055068,120]
[321446783,1712193080588,-500.0,0.00055068,120]
[321446784,1712193080597,-500.0,0.00055068,120]
[321446785,1712193080607,-500.0,0.00055068,120]
[321446786,1712193080617,-500.0,0.00055068,120]
[321446787,1712193080626,-500.0,0.00055068,120]
[321446788,1712193080636,-500.0,0.00055068,120]
[321446789,1712193080646,-777.46,0.00055068,120]
[321446790,1712193080656,-500.0,0.00055068,120]
[321446791,1712193080666,-500.0,0.00055068,120]
[321446792,1712193080675,-607.7,0.00055068,120]
[321446793,1712193080685,-500.0,0.00055068,120]
[321446794,1712193080695,-500.0,0.00055068,120]
[321446795,1712193080705,-1000.0,0.00055068,120]
[321446796,1712193080715,-500.0,0.00055068,120]
[321446797,1712193080724,-500.0,0.00055068,120]
[321446798,1712193080735,-500.0,0.00055068,120]
[321446799,1712193080745,-627.53,0.00055068,120]
[321446800,1712193080754,-507.22404541,0.00055068,120]
[321446801,1712193080764,-473.45819583,0.00055068,120]
[321446802,1712193080773,-325.68803425,0.00055068,120]
[321446803,1712193080783,-500.0,0.00055068,120]
[321446804,1712193080793,-500.0,0.00055068,120]
[321446805,1712193080802,-500.0,0.00055068,120]
[321446806,1712193080812,-500.0,0.00055068,120]
[321446807,1712193080822,-595.85,0.00055068,120]
[321446808,1712193080831,-835.6,0.00055068,120]
[321446809,1712193080841,-500.0,0.00055068,120]
[321446810,1712193080851,-500.0,0.00055068,120]
[321446811,1712193080862,-500.0,0.00055068,120]
[321446812,1712193080871,-458.23511898,0.00055068,120]
[321446813,1712193080881,-500.0,0.00055068,120]
[321446814,1712193080891,-500.0,0.00055068,120]
[321446815,1712193080900,-500.0,0.00055068,120]
[321446816,1712193080911,-512.11460839,0.00055068,120]
[321446817,1712193080921,-500.0,0.00055068,120]
[321446818,1712193080930,-636.55,0.00055068,120]
[321446819,1712193080939,-639.28,0.00055068,120]
[321446820,1712193080949,-500.0,0.00055068,120]
[321446821,1712193080959,-500.0,0.00055068,120]
[321446822,1712193080968,-500.0,0.00055068,120]
[321446823,1712193080978,-500.0,0.00055068,120]
[321446824,1712193080988,-727.44,0.00055068,120]
[321446825,1712193080997,-516.03,0.00055068,120]
[321446826,1712193081007,-500.0,0.00055068,120]
[321446827,1712193081016,-500.0,0.00055068,120]
[321446828,1712193081026,-500.0,0.00055068,120]
[321446829,1712193081036,-500.0,0.00055068,120]
[321446830,1712193081046,-502.0355614,0.00055068,120]
[321446831,1712193081055,-500.0,0.00055068,120]
[321446832,1712193081065,-500.0,0.00055068,120]
[321446833,1712193081075,-694.85,0.00055068,120]
[321446834,1712193081085,-500.0,0.00055068,120]
[321446835,1712193081095,-582.69,0.00055068,120]
[321446836,1712193081105,-500.0,0.00055068,120]
[321446837,1712193081114,-500.0,0.00055068,120]
[321446838,1712193081123,-576.96,0.00055068,120]
[321446839,1712193081133,-1652.9,0.00055068,2]
[321446840,1712193081143,-500.0,0.00055068,120]
[321446841,1712193081153,-511.41582246,0.00055068,120]
[321446842,1712193081162,-509.05729146,0.00055068,120]
[321446843,1712193081171,-787.49,0.00055068,120]
[321446844,1712193081181,-500.0,0.00055068,120]
[321446845,1712193081191,-520.12048537,0.00055068,120]
[321446846,1712193081201,-500.0,0.00055068,120]
[321446847,1712193081210,-500.0,0.00055068,120]
[321446848,1712193081220,-200.0,0.00055068,10]
[321446849,1712193081230,-500.0,0.00055068,120]
[321446850,1712193081240,-973.42,0.00055068,120]
[321446851,1712193081250,-500.0,0.00055068,120]
[321446852,1712193081260,-500.0,0.00055068,120]
[321446853,1712193081270,-500.0,0.00055068,120]
[321446854,1712193081280,-507.48438835,0.00055068,120]
[321446855,1712193081291,-500.0,0.00055068,120]
[321446856,1712193081302,-543.10563866,0.00055068,120]
[321446857,1712193081312,-746.05,0.00055068,120]
[321446858,1712193081322,-500.0,0.00055068,2]
[321446859,1712193081332,-500.0,0.00055068,120]
[321446860,1712193081666,-500.0,0.00055068,120]
[321446861,1712193081676,-510.25363535,0.00055068,120]
[321446862,1712193081686,-703.82,0.00055068,120]
[321446863,1712193081696,-500.0,0.00055068,120]
[321446864,1712193081705,-531.89111458,0.00055068,120]
[321446865,1712193081714,-535.38733274,0.00055068,120]
[321446866,1712193081725,-500.0,0.00055068,120]
[321446867,1712193081736,-500.0,0.00055068,120]
[321446868,1712193081746,-500.0,0.00055068,120]
[321446869,1712193081756,-643.84055473,0.00055068,120]
[321446870,1712193081766,-498.89195099,0.00055068,120]
[321446871,1712193081775,-674.38,0.00055068,120]
[321446872,1712193081784,-521.29945489,0.00055068,120]
[321446873,1712193081794,-507.28304077,0.00055068,120]
[321446874,1712193081804,-500.0,0.00055068,120]
[321446875,1712193081815,-500.0,0.00055068,120]
[321446876,1712193081826,-538.76,0.00055068,120]
[321446877,1712193081835,-500.0,0.00055068,120]
[321446878,1712193081844,-673.34,0.00055068,120]
[321446879,1712193081854,-500.0,0.00055068,2]
[321446880,1712193081867,-855.27,0.00055068,120]
[321446881,1712193081876,-500.0,0.00055068,120]
[321446882,1712193081886,-500.0,0.00055068,120]
[321446883,1712193081896,-500.0,0.00055068,120]
[321446884,1712193081906,-500.0,0.00055068,120]
[321446885,1712193081915,-500.0,0.00055068,120]
[321446886,1712193081925,-500.0,0.00055068,120]
[321446887,1712193081936,-559.35,0.00055068,120]
[321446888,1712193081946,-605.37200751,0.00055068,120]
[321446889,1712193081955,-500.0,0.00055068,120]
[321446890,1712193081965,-1037.75,0.00055068,120]
[321446891,1712193081975,-302.85171154,0.00055068,120]
[321446892,1712193081984,-525.45438206,0.00055068,120]
[321446893,1712193081994,-500.0,0.00055068,120]
[321446894,1712193082003,-500.0,0.00055068,120]
[321446895,1712193082013,-500.0,0.00055068,120]
[321446896,1712193082022,-500.0,0.00055068,120]
[321446897,1712193082032,-540.83552216,0.00055068,120]
[321446898,1712193082042,-500.0,0.00055068,120]
[321446899,1712193082051,-500.0,0.00055068,120]
[321446900,1712193082060,-500.0,0.00055068,120]
[321446901,1712193082070,-500.0,0.00055068,120]
[321446902,1712193082080,-289.37212745,0.00055068,120]
[321446903,1712193082089,-531.76,0.00055068,120]
[321446904,1712193082098,-500.0,0.00055068,120]
[321446905,1712193082110,-938.84,0.00055068,120]
[321446906,1712193082120,-500.0,0.00055068,120]
[321446907,1712193082130,-657.28,0.00055068,120]
[321446908,1712193082140,-526.13017873,0.00055068,120]
[321446909,1712193082149,-679.51,0.00055068,120]
[321446910,1712193082159,-500.0,0.00055068,120]
[321446911,1712193082169,-1384.73,0.00055068,120]
[321446912,1712193082179,-500.0,0.00055068,120]
[321446913,1712193082189,-500.0,0.00055068,120]
[321446914,1712193082198,-500.0,0.00055068,120]
[321446915,1712193082207,-500.0,0.00055068,120]
[321446916,1712193082217,-500.0,0.00055068,120]
[321446917,1712193082227,-601.62717731,0.00055068,120]
[321446918,1712193082236,-500.0,0.00055068,120]
[321446919,1712193082247,-518.05015587,0.00055068,120]
[321446920,1712193082257,-1055.26,0.00055068,120]
[321446921,1712193082266,-500.0,0.00055068,120]
[321446922,1712193082276,-501.4736451,0.00055068,120]
[321446923,1712193082284,-500.0,0.00055068,120]
[321446924,1712193082294,-500.0,0.00055068,120]
[321446925,1712193082303,-500.0,0.00055068,120]
[321446926,1712193082313,-500.0,0.00055068,120]
[321446927,1712193082322,-500.0,0.00055068,120]
[321446928,1712193082331,-762.57,0.00055068,120]
[321446929,1712193082341,-751.45,0.00055068,120]
[321446930,1712193082351,-500.0,0.00055068,120]
[321446931,1712193082364,-500.0,0.00055068,120]
[321446932,1712193082375,-500.0,0.00055068,120]
[321446933,1712193082384,-500.0,0.00055068,120]
[321446934,1712193082393,-499.93966774,0.00055068,120]
[321446935,1712193082403,-500.0,0.00055068,120]
[321446936,1712193082413,-505.77143171,0.00055068,120]
[321446937,1712193082422,-775.35,0.00055068,120]
[321446938,1712193082432,-500.0,0.00055068,120]
[321446939,1712193082441,-500.0,0.00055068,120]
[321446940,1712193082451,-500.0,0.00055068,120]
[321446941,1712193082460,-500.0,0.00055068,120]
[321446942,1712193082469,-734.72,0.00055068,120]
[321446943,1712193082479,-817.0,0.00055068,120]
[321446944,1712193082488,-500.0,0.00055068,120]
[321446945,1712193082497,-1067.21,0.00055068,120]
[321446946,1712193082507,-500.0,0.00055068,120]
[321446947,1712193082517,-500.0,0.00055068,120]
[321446948,1712193082527,-500.0,0.00055068,120]
[321446949,1712193082537,-918.29,0.00055068,120]
[321446950,1712193082547,-500.0,0.00055068,120]
[321446951,1712193082556,-500.0,0.00055068,120]
[321446952,1712193082566,-1803.32,0.00055068,120]
[321446953,1712193082575,-500.0,0.00055068,120]
[321446954,1712193082585,-530.57,0.00055068,120]
[321446955,1712193082594,-500.0,0.00055068,120]
[321446956,1712193082604,-500.0,0.00055068,120]
[321446957,1712193082618,-500.0,0.00055068,120]
[321446958,1712193082628,-500.0,0.00055068,120]
[321446959,1712193082637,-500.0,0.00055068,120]
[321446960,1712193082647,-573.84,0.00055068,120]
[321446961,1712193082657,-647.86,0.00055068,120]
[321446962,1712193082666,-500.0,0.00055068,120]
[321446963,1712193082675,-600.0,0.00055068,2]
[321446964,1712193082685,-791.83,0.00055068,120]
[321446965,1712193082695,-581.55210061,0.00055068,120]
[321446966,1712193082705,-500.0,0.00055068,120]
[321446967,1712193082714,-408.03685875,0.00055068,120]
[321446968,1712193082723,-500.0,0.00055068,120]
[321446969,1712193082733,-1099.54,0.00055068,120]
[321446970,1712193082744,-500.0,0.00055068,120]
[321446971,1712193082754,-500.0,0.00055068,120]
[321446972,1712193082763,-480.7072807,0.00055068,120]
[321446973,1712193082773,-3000.0,0.00055068,120]
[321446974,1712193082782,-500.0,0.00055068,120]
[321446975,1712193082791,-500.0,0.00055068,120]
[321446976,1712193082801,-500.0,0.00055068,120]
[321446977,1712193082810,-589.36944926,0.00055068,120]
[321446978,1712193082820,-500.0,0.00055068,120]
[321446979,1712193082829,-547.47714468,0.00055068,120]
[321446980,1712193082838,-500.0,0.00055068,120]
[321446981,1712193082848,-500.0,0.00055068,120]
[321446982,1712193082858,-500.0,0.00055068,120]
[321446983,1712193082871,-500.0,0.00055068,120]
[321446984,1712193082880,-606.8458915,0.00055068,120]
[321446985,1712193082889,-500.0,0.00055068,120]
[321446986,1712193082898,-1657.99,0.00055068,30]
[321446987,1712193082908,-503.8700193,0.00055068,120]
[321446988,1712193082917,-508.64,0.00055068,120]
[321446989,1712193082927,-873.47,0.00055068,120]
[321446990,1712193082936,-615.89808607,0.00055068,120]
[321446991,1712193082946,-511.24,0.00055068,120]
[321446992,1712193082955,-500.0,0.00055068,120]
[321446993,1712193082964,-990.77,0.00055068,120]
[321446994,1712193082973,-500.0,0.00055068,120]
[321446995,1712193082983,-506.4479022,0.00055068,120]
[321446996,1712193082993,-704.66,0.00055068,120]
[321446997,1712193083003,-749.89,0.00055068,120]
[321446998,1712193083012,-1027.84,0.00055068,120]
[321446999,1712193083023,-500.0,0.00055068,120]
[321447000,1712193083033,-868.5,0.00055068,120]
[321447001,1712193083042,-2020.42,0.00055068,120]
[321447002,1712193083051,-337.6990871,0.00055068,120]
[321447003,1712193083060,-1632.35,0.00055068,120]
[321447004,1712193083070,-543.82166699,0.00055068,120]
[321447005,1712193083079,-705.27,0.00055068,120]
[321447006,1712193083088,-257.62952995,0.00055068,120]
[321447007,1712193083098,-500.0,0.00055068,120]
[321447008,1712193083107,-500.0,0.00055068,120]
[321447009,1712193083119,-1006.03,0.00055068,120]
[321447010,1712193083129,-618.99941599,0.00055068,120]
[321447011,1712193083140,-539.18,0.00055068,120]
[321447012,1712193083150,-500.0,0.00055068,120]
[321447013,1712193083160,-500.0,0.00055068,120]
[321447014,1712193083169,-500.0,0.00055068,120]
[321447015,1712193083179,-513.28,0.00055068,120]
[321447016,1712193083188,-500.0,0.00055068,120]
[321447017,1712193083197,-836.08,0.00055068,120]
[321447018,1712193083207,-500.0,0.00055068,120]
[321447019,1712193083216,-500.0,0.00055068,120]
[321447020,1712193083225,-2185.74,0.00055068,120]
[321447021,1712193083234,-500.0,0.00055068,120]
[321447022,1712193083244,-500.0,0.00055068,120]
[321447023,1712193083253,-500.0,0.00055068,120]
[321447024,1712193083262,-1283.01,0.00055068,120]
[321447025,1712193083272,-666.67,0.00055068,120]
[321447026,1712193083281,-533.57913989,0.00055068,120]
[321447027,1712193083290,-886.76,0.00055068,120]
[321447028,1712193083299,-500.0,0.00055068,120]
[321447029,1712193083308,-1101.57,0.00055068,120]
[321447030,1712193083318,-510.42296223,0.00055068,120]
[321447031,1712193083330,-572.56782207,0.00055068,120]
[321447032,1712193083340,-500.0,0.00055068,120]
[321447033,1712193083351,-1211.72,0.00055068,120]
[321447034,1712193083362,-522.19203692,0.00055068,120]
[321447035,1712193083371,-500.0,0.00055068,120]
[321447036,1712193083385,-500.0,0.00055068,120]
[321447037,1712193083395,-500.0,0.00055068,120]
[321447038,1712193083405,-500.0,0.00055068,120]
[321447039,1712193083415,-500.0,0.00055068,120]
[321447040,1712193083425,-500.0,0.00055068,120]
[321447041,1712193083436,-503.64231859,0.00055068,120]
[321447042,1712193083447,-1000.0,0.00055068,30]
[321447043,1712193083458,-500.0,0.00055068,120]
[321447044,1712193083468,-500.0,0.00055068,120]
[321447045,1712193083478,-500.0,0.00055068,120]
[321447046,1712193083487,-500.0,0.00055068,120]
[321447047,1712193083497,-952.04,0.00055068,120]
[321447048,1712193083507,-1261.86,0.00055068,120]
[321447049,1712193083516,-500.0,0.00055068,120]
[321447050,1712193083527,-1429.76,0.00055068,120]
[321447051,1712193083537,-1277.23,0.00055068,120]
[321447052,1712193083547,-500.0,0.00055068,120]
[321447053,1712193083557,-500.0,0.00055068,120]
[321447054,1712193083567,-887.26,0.00055068,120]
[321447055,1712193083577,-659.49,0.00055068,120]
[321447056,1712193083588,-500.0,0.00055068,120]
[321447057,1712193083598,-1284.38,0.00055068,120]
[321447058,1712193083607,-935.91,0.00055068,120]
[321447059,1712193083619,-500.0,0.00055068,120]
[321447060,1712193083629,-500.0,0.00055068,120]
[321447061,1712193083639,-500.0,0.00055068,120]
[321447062,1712193083649,-2000.0,0.00055068,30]
[321447063,1712193083660,-500.0,0.00055068,120]
[321447064,1712193083670,-1119.45,0.00055068,120]
[321447065,1712193083679,-500.0,0.00055068,2]
[321447066,1712193083690,-1576.5,0.00055068,120]
[321447067,1712193083699,-500.0,0.00055068,120]
[321447068,1712193083713,-500.0,0.00055068,120]
[321447069,1712193083723,-500.0,0.00055068,30]
[321447070,1712193083733,-2498.55,0.00055068,120]
[321447071,1712193083743,-500.0,0.00055068,120]
[321447072,1712193083755,-590.49,0.00055068,120]
[321447073,1712193083765,-500.0,0.00055068,120]
[321447074,1712193083776,-500.0,0.00055068,120]
[321447075,1712193083785,-3323.22,0.00055068,120]
[321447076,1712193083796,-500.0,0.00055068,120]
[321447077,1712193083806,-1115.69,0.00055068,120]
[321447078,1712193083816,-500.0,0.00055068,120]
[321447079,1712193083826,-733.94,0.00055068,120]
[321447080,1712193083835,-515.42406241,0.00055068,120]
[321447081,1712193083845,-634.62,0.00055068,120]
[321447082,1712193083854,-906.84,0.00055068,120]
[321447083,1712193083865,-500.0,0.00055068,120]
[321447084,1712193083874,-500.0,0.00055068,120]
[321447085,1712193083884,-686.97,0.00055068,120]
[321447086,1712193083893,-959.52,0.00055068,120]
[321447087,1712193083903,-519.01344527,0.00055068,120]
[321447088,1712193083913,-642.8,0.00055068,120]
[321447089,1712193083924,-500.0,0.00055068,120]
[321447090,1712193083935,-512.4378938,0.00055068,120]
[321447091,1712193083946,-500.0,0.00055068,120]
[321447092,1712193083956,-500.0,0.00055068,120]
[321447093,1712193083966,-544.8439429,0.00055068,120]
[321447094,1712193083975,-982.66,0.00055068,120]
[321447095,1712193084088,-500.0,0.00055068,120]
[321447096,1712193084098,-523.71125148,0.00055068,120]
[321447097,1712193084107,-472.76347994,0.00055068,120]
[321447098,1712193084118,-500.0,0.00055068,120]
[321447099,1712193084128,-500.0,0.00055068,120]
[321447100,1712193084137,-500.0,0.00055068,120]
[321447101,1712193084146,-500.0,0.00055068,120]
[321447102,1712193084155,-580.93,0.00055068,120]
[321447103,1712193084164,-500.0,0.00055068,120]
[321447104,1712193084173,-500.0,0.00055068,120]
[321447105,1712193084183,-1021.29,0.00055068,120]
[321447106,1712193084192,-500.0,0.00055068,120]
[321447107,1712193084201,-500.0,0.00055068,120]
[321447108,1712193084210,-550.62622301,0.00055068,120]
[321447109,1712193084219,-500.0,0.00055068,120]
[321447110,1712193084229,-631.33,0.00055068,120]
[321447111,1712193084238,-1411.34,0.00055068,120]
[321447112,1712193084247,-500.0,0.00055068,120]
[321447113,1712193084256,-500.0,0.00055068,120]
[321447114,1712193084266,-1184.33,0.00055068,120]
[321447115,1712193084275,-1115.54,0.00055068,120]
[321447116,1712193084285,-500.0,0.00055068,120]
[321447117,1712193084294,-960.97,0.00055068,120]
[321447118,1712193084304,-500.0,0.00055068,120]
[321447119,1712193084314,-500.0,0.00055068,120]
[321447120,1712193084323,-1739.99,0.00055068,120]
[321447121,1712193084333,-1282.32,0.00055068,120]
[321447122,1712193084342,-500.0,0.00055068,120]
[321447123,1712193084352,-500.0,0.00055068,120]
[321447124,1712193084363,-500.0,0.00055068,120]
[321447125,1712193084372,-1277.94,0.00055068,120]
[321447126,1712193084381,-838.66,0.00055068,120]
[321447127,1712193084389,-500.0,0.00055068,120]
[321447128,1712193084398,-500.0,0.00055068,120]
[321447129,1712193084408,-500.0,0.00055068,120]
[321447130,1712193084417,-500.0,0.00055068,120]
[321447131,1712193084427,-500.0,0.00055068,120]
[321447132,1712193084436,-509.58466675,0.00055068,120]
[321447133,1712193084446,-697.62,0.00055068,120]
[321447134,1712193084456,-758.26,0.00055068,120]
[321447135,1712193084466,-977.94,0.00055068,120]
[321447136,1712193084475,-1115.79,0.00055068,120]
[321447137,1712193084485,-511.4,0.00055068,120]
[321447138,1712193084495,-500.0,0.00055068,120]
[321447139,1712193084504,-1009.55,0.00055068,120]
[321447140,1712193084515,-558.23,0.00055068,120]
[321447141,1712193084525,-500.0,0.00055068,120]
[321447142,1712193084534,-500.0,0.00055068,120]
[321447143,1712193084545,-1332.56,0.00055068,120]
[321447144,1712193084555,-965.12,0.00055068,120]
[321447145,1712193084564,-1238.91,0.00055068,120]
[321447146,1712193084574,-500.0,0.00055068,120]
[321447147,1712193084584,-500.0,0.00055068,120]
[321447148,1712193084593,-525.4561617,0.00055068,120]
[321447149,1712193084603,-540.39,0.00055068,120]
[321447150,1712193084615,-500.0,0.00055068,120]
[321447151,1712193084624,-1215.43,0.00055068,120]
[321447152,1712193084635,-500.0,0.00055068,120]
[321447153,1712193084644,-553.5,0.00055068,120]
[321447154,1712193084656,-510.05363765,0.00055068,120]
[321447155,1712193084666,-504.9582754,0.00055068,120]
[321447156,1712193084676,-1098.35,0.00055068,120]
[321447157,1712193084686,-500.0,0.00055068,120]
[321447158,1712193084696,-624.35,0.00055068,120]
[321447159,1712193084706,-500.0,0.00055068,120]
[321447160,1712193084717,-518.58663951,0.00055068,120]
[321447161,1712193084727,-500.0,0.00055068,120]
[321447162,1712193084737,-500.0,0.00055068,120]
[321447163,1712193084747,-527.73850559,0.00055068,120]
[321447164,1712193084757,-1556.91,0.00055068,120]
[321447165,1712193084767,-647.29,0.00055068,120]
[321447166,1712193084776,-954.31,0.00055068,120]
[321447167,1712193084787,-500.0,0.00055068,120]
[321447168,1712193084799,-1132.35,0.00055068,120]
[321447169,1712193084809,-500.0,0.00055068,120]
[321447170,1712193084819,-910.81,0.00055068,80]
[321447171,1712193084829,-500.0,0.00055068,120]
[321447172,1712193084838,-407.46717886,0.00055068,120]
[321447173,1712193084847,-509.42136009,0.00055068,120]
[321447174,1712193084856,-500.0,0.00055068,120]
[321447175,1712193084867,-500.0,0.00055068,120]
[321447176,1712193084876,-500.0,0.00055068,120]
[321447177,1712193084886,-715.45,0.00055068,120]
[321447178,1712193084895,-2796.11,0.00055068,120]
[321447179,1712193084905,-500.0,0.00055068,120]
[321447180,1712193084914,-1154.7,0.00055068,120]
[321447181,1712193084923,-653.27,0.00055068,120]
[321447182,1712193084933,-500.0,0.00055068,120]
[321447183,1712193084942,-500.0,0.00055068,120]
[321447184,1712193084951,-500.0,0.00055068,120]
[321447185,1712193084960,-676.42,0.00055068,120]
[321447186,1712193084970,-500.0,0.00055068,120]
[321447187,1712193084979,-500.0,0.00055068,120]
[321447188,1712193084988,-507.17787153,0.00055068,120]
[321447189,1712193084997,-517.35786485,0.00055068,120]
[321447190,1712193085006,-500.0,0.00055068,120]
[321447191,1712193085016,-504.16728703,0.00055068,120]
[321447192,1712193085025,-500.0,0.00055068,120]
[321447193,1712193085035,-531.05227138,0.00055068,120]
[321447194,1712193085044,-1753.93,0.00055068,120]
[321447195,1712193085053,-500.0,0.00055068,120]
[321447196,1712193085063,-865.98,0.00055068,120]
[321447197,1712193085072,-500.0,0.00055068,120]
[321447198,1712193085081,-500.0,0.00055068,120]
[321447199,1712193085091,-500.0,0.00055068,120]
[321447200,1712193085101,-500.0,0.00055068,120]
[321447201,1712193085110,-593.44,0.00055068,120]
[321447202,1712193085121,-1283.08,0.00055068,120]
[321447203,1712193085131,-651.69,0.00055068,120]
[321447204,1712193085140,-500.0,0.00055068,120]
[321447205,1712193085150,-737.72,0.00055068,120]
[321447206,1712193085159,-500.0,0.00055068,2]
[321447207,1712193085168,-500.0,0.00055068,120]
[321447208,1712193085177,-459.38631985,0.00055068,120]
[321447209,1712193085186,-500.0,0.00055068,120]
[321447210,1712193085195,-500.0,0.00055068,120]
[321447211,1712193085205,-831.31,0.00055068,120]
[321447212,1712193085214,-1622.05,0.00055068,120]
[321447213,1712193085224,-500.0,0.00055068,120]
[321447214,1712193085233,-500.0,0.00055068,120]
[321447215,1712193085242,-500.0,0.00055068,120]
[321447216,1712193085251,-512.50681077,0.00055068,120]
[321447217,1712193085261,-552.38,0.00055068,120]
[321447218,1712193085270,-500.0,0.00055068,120]
[321447219,1712193085279,-510.09631187,0.00055068,120]
[321447220,1712193085288,-1121.37,0.00055068,120]
[321447221,1712193085297,-500.0,0.00055068,120]
[321447222,1712193085306,-500.0,0.00055068,120]
[321447223,1712193085316,-530.63469452,0.00055068,120]
[321447224,1712193085325,-1238.44,0.00055068,120]
[321447225,1712193085334,-531.01,0.00055068,120]
[321447226,1712193085343,-500.0,0.00055068,120]
[321447227,1712193085352,-435.61618419,0.00055068,120]
[321447228,1712193085361,-500.0,0.00055068,120]
[321447229,1712193085373,-500.0,0.00055068,120]
[321447230,1712193085383,-500.0,0.00055068,120]
[321447231,1712193085392,-500.0,0.00055068,120]
[321447232,1712193085401,-500.0,0.00055068,120]
[321447233,1712193085410,-1180.17,0.00055068,30]
[321447234,1712193085419,-500.0,0.00055068,120]
[321447235,1712193085428,-1436.56,0.00055068,120]
[321447236,1712193085438,-500.0,0.00055068,120]
[321447237,1712193085447,-500.0,0.00055068,120]
[321447238,1712193085455,-529.46754812,0.00055068,120]
[321447239,1712193085464,-500.0,0.00055068,120]
[321447240,1712193085473,-897.57,0.00055068,120]
[321447241,1712193085482,-500.0,0.00055068,120]
[321447242,1712193085491,-500.0,0.00055068,120]
[321447243,1712193085500,-500.0,0.00055068,120]
[321447244,1712193085509,-318.9757785,0.00055068,120]